fUST/lending_fUST_20260424
["ID","MTS","AMOUNT","RATE_DAILY","PERIOD"]
[421100261,1777043449261,-500.0,0.00019452,2]
[421100262,1777043449270,-476.3692298,0.00019452,2]
[421100263,1777043449279,-500.0,0.00019452,2]
[421100264,1777043449288,-500.0,0.00019452,2]
[421100265,1777043449297,-500.0,0.00019452,2]
[421100266,1777043449307,-1292.47,0.00019452,2]
[421100267,1777043449316,-500.0,0.00019452,2]
[421100268,1777043449325,-500.0,0.00019452,2]
[421100269,1777043449335,-500.0,0.00019452,2]
[421100270,1777043449344,-500.0,0.00019452,2]
[421100271,1777043449353,-500.0,0.00019452,2]
[421100272,1777043449363,-500.0,0.00019452,2]
[421100273,1777043449372,-500.0,0.00019452,2]
[421100274,1777043449381,-500.0,0.00019452,2]
[421100275,1777043449390,-500.0,0.00019452,2]
[421100276,1777043449399,-500.0,0.00019452,2]
[421100277,1777043449409,-2728.0,0.00019452,2]
[421100278,1777043449419,-500.0,0.00019452,2]
[421100279,1777043449429,-510.32,0.00019452,2]
[421100280,1777043449438,-535.87421857,0.00019452,2]
[421100281,1777043449447,-500.0,0.00019452,2]
[421100282,1777043449456,-500.0,0.00019452,2]
[421100283,1777043449465,-500.0,0.00019452,2]
[421100284,1777043449474,-2262.79,0.00019452,2]
[421100285,1777043449484,-500.0,0.00019452,2]
[421100286,1777043449493,-878.51,0.00019452,2]
[421100287,1777043449503,-4959.06,0.00019452,2]
[421100288,1777043449512,-384.92727988,0.00019452,2]
[421100289,1777043449522,-500.0,0.00019452,2]
[421100290,1777043449531,-560.18,0.00019452,2]
[421100291,1777043449540,-500.0,0.00019452,2]
[421100292,1777043449549,-500.0,0.00019452,2]
[421100293,1777043449559,-500.0,0.00019452,2]
[421100294,1777043449568,-500.0,0.00019452,2]
[421100295,1777043449578,-220.74506717,0.00019452,2]
[421100296,1777043449587,-500.0,0.00019452,2]
[421100297,1777043449596,-500.0,0.00019452,2]
[421100298,1777043449606,-2159.18,0.00019452,2]
[421100299,1777043449616,-500.0,0.00019452,2]
[421100300,1777043449625,-500.0,0.00019452,2]
[421100301,1777043449636,-629.01,0.00019452,2]
[421100302,1777043449645,-883.59,0.00019452,2]
[421100303,1777043449655,-500.0,0.00019452,2]
[421100304,1777043449665,-500.0,0.00019452,2]
[421100305,1777043449674,-500.0,0.00019452,2]
[421100306,1777043449685,-500.0,0.00019452,2]
[421100307,1777043449695,-626.82475938,0.00019452,2]
[421100308,1777043449705,-2340.67,0.00019452,2]
[421100309,1777043449715,-500.0,0.00019452,2]
[421100310,1777043449724,-500.0,0.00019452,2]
[421100311,1777043449734,-500.0,0.00019452,2]
[421100312,1777043449744,-530.87,0.00019452,2]
[421100313,1777043449755,-500.0,0.00019452,2]
[421100314,1777043449765,-500.0,0.00019452,2]
[421100315,1777043449774,-500.0,0.00019452,2]
[421100316,1777043449785,-707.0,0.00019452,2]
[421100317,1777043449794,-1250.04,0.00019452,2]
[421100318,1777043449803,-628.82630893,0.00019452,2]
[421100319,1777043449813,-441.21637521,0.00019452,2]
[421100320,1777043449822,-1107.16,0.00019452,2]
[421100321,1777043449832,-500.0,0.00019452,2]
[421100322,1777043449944,-500.0,0.00019452,2]
[421100323,1777043449957,-2159.85,0.00019452,2]
[421100324,1777043449967,-654.61,0.00019452,2]
[421100325,1777043449976,-1006.09,0.00019452,2]
[421100326,1777043449986,-534.97,0.00019452,2]
[421100327,1777043449996,-742.51,0.00019452,2]
[421100328,1777043450005,-500.0,0.00019452,2]
[421100329,1777043450015,-500.0,0.00019452,2]
[421100330,1777043450024,-500.0,0.00019452,2]
[421100331,1777043450034,-1090.81,0.00019452,2]
[421100332,1777043450044,-500.0,0.00019452,2]
[421100333,1777043450053,-500.0,0.00019452,2]
[421100334,1777043450063,-500.0,0.00019452,2]
[421100335,1777043450073,-500.0,0.00019452,2]
[421100336,1777043450082,-1458.28,0.00019452,2]
[421100337,1777043450092,-648.11,0.00019452,2]
[421100338,1777043450102,-500.0,0.00019452,2]
[421100339,1777043450111,-727.09,0.00019452,2]
[421100340,1777043450121,-604.43,0.00019452,2]
[421100341,1777043450131,-55243.95383,0.00019452,2]
[421100342,1777043450140,-500.0,0.00019452,2]
[421100343,1777043450150,-318.95296121,0.00019452,2]
[421100344,1777043450161,-500.0,0.00019452,2]
[421100345,1777043450171,-219.9892595,0.00019452,2]
[421100346,1777043450181,-500.0,0.00019452,2]
[421100347,1777043450191,-2438.36,0.00019452,2]
[421100348,1777043450202,-500.0,0.00019452,2]
[421100349,1777043450212,-197.84400688,0.00019452,2]
[421100350,1777043450220,-500.0,0.00019452,2]
[421100351,1777043450231,-500.0,0.00019452,2]
[421100352,1777043450242,-966.182661,0.00019452,2]
[421100353,1777043450253,-693.65,0.00019452,2]
[421100354,1777043450263,-1015.11,0.00019452,2]
[421100355,1777043450272,-1000.0,0.00019452,2]
[421100356,1777043450281,-729.84,0.00019452,2]
[421100357,1777043450290,-250.201689,0.00019452,2]
[421100358,1777043450300,-500.0,0.00019452,2]
[421100359,1777043450309,-500.0,0.00019452,2]
[421100360,1777043450319,-500.0,0.00019452,2]
[421100361,1777043450328,-966.94,0.00019452,2]
[421100362,1777043450337,-4143.73,0.00019452,2]
[421100363,1777043450347,-500.0,0.00019452,2]
[421100364,1777043450357,-500.0,0.00019452,2]
[421100365,1777043450366,-1114.54,0.00019452,2]
[421100366,1777043450376,-500.0,0.00019452,2]
[421100367,1777043450385,-500.0,0.00019452,2]
[421100368,1777043450394,-578.41488675,0.00019452,2]
[421100369,1777043450404,-618.91431658,0.00019452,2]
[421100370,1777043450413,-500.0,0.00019452,2]
[421100371,1777043450423,-1567.4,0.00019452,2]
[421100372,1777043450432,-1037.68,0.00019452,2]
[421100373,1777043450441,-500.0,0.00019452,2]
[421100374,1777043450451,-4441.29,0.00019452,2]
[421100375,1777043450460,-500.0,0.00019452,2]
[421100376,1777043450470,-50055.2,0.00019452,2]
[421100377,1777043450479,-500.0,0.00019452,2]
[421100378,1777043450488,-500.0,0.00019452,2]
[421100379,1777043450498,-500.0,0.00019452,2]
[421100380,1777043450508,-1483.09,0.00019452,2]
[421100381,1777043450517,-500.0,0.00019452,2]
[421100382,1777043450527,-500.0,0.00019452,2]
[421100383,1777043450536,-500.0,0.00019452,2]
[421100384,1777043450546,-13510.93846533,0.00019452,2]
[421100385,1777043450834,-1268.88875421,0.00019452,2]
[421100386,1777043450889,-2188.61278046,0.00019452,2]
[421100387,1777043450899,-500.0,0.00019452,2]
[421100388,1777043450908,-500.0,0.00019452,2]
[421100389,1777043450918,-500.0,0.00019452,2]
[421100390,1777043450927,-1280.18592741,0.00019452,2]
[421100391,1777043450939,-846.11407259,0.00019452,2]
[421100392,1777043450948,-500.0,0.00019452,2]
[421100393,1777043450957,-500.0,0.00019452,2]
[421100394,1777043450967,-2225.64034804,0.00019452,2]
[421100395,1777043450978,-1171.01050221,0.00019452,2]
[421100396,1777043452114,-260.55310984,0.0001585,2]
[421100397,1777043452124,-295.03808026,0.0001785,2]
[421100398,1777043452134,-13592.94914975,0.00019452,2]
[421100399,1777043452143,-500.0,0.00019452,2]
[421100400,1777043452153,-1068.11,0.00019452,2]
[421100401,1777043452163,-500.0,0.00019452,2]
[421100402,1777043452172,-500.0,0.00019452,2]
[421100403,1777043452182,-500.0,0.00019452,2]
[421100404,1777043452192,-500.0,0.00019452,2]
[421100405,1777043452201,-500.0,0.00019452,2]
[421100406,1777043452212,-2268.94586823,0.00019452,2]
[421100423,1777044632569,-3019.84429039,0.00012727,2]
[421100426,1777044632625,-67.79519163,0.00012727,2]
[421100427,1777044632637,-602.0,0.00012826,2]
[421100428,1777044632647,-187.35831903,0.00012827,2]
[421100429,1777044632658,-259.208,0.00012828,2]
[421100430,1777044632668,-300.0,0.00012829,2]
[421100431,1777044632679,-300.0,0.00012829,2]
[421100432,1777044632689,-300.0,0.00012829,2]
[421100433,1777044632699,-1200.0,0.00012829,2]
[421100435,1777044632709,-500.0,0.00012829,2]
[421100438,1777044632719,-500.0,0.00012829,2]
[421100440,1777044632729,-492.93990376,0.00012829,2]
[421100442,1777044632740,-6176.87153673,0.0001283,2]
[421100445,1777044632760,-1093.98275846,0.0001283,2]
[421100482,1777044639048,-515.8027815,0.00012829,2]
[421100483,1777044639057,-1275.7332185,0.0001283,2]
[421100484,1777044639076,-24340.32442266,0.0001283,2]
[421100485,1777044639086,-4164.63868049,0.00012986,2]
[421100486,1777044639096,-300.0,0.00013086,2]
[421100487,1777044639105,-300.0,0.00013086,2]
[421100488,1777044639115,-300.0,0.00013086,2]
[421100489,1777044639124,-300.0,0.00013086,2]
[421100490,1777044639134,-300.0,0.00013086,2]
[421100491,1777044639143,-300.0,0.00013086,2]
[421100492,1777044639154,-300.0,0.00013086,2]
[421100493,1777044639163,-300.0,0.00013086,2]
[421100494,1777044639173,-300.0,0.00013086,2]
[421100495,1777044639183,-300.0,0.00013086,2]
[421100496,1777044639193,-300.0,0.00013086,2]
[421100497,1777044639202,-300.0,0.00013086,2]
[421100498,1777044639211,-300.0,0.00013086,2]
[421100499,1777044639221,-300.0,0.00013086,2]
[421100500,1777044639230,-300.0,0.00013086,2]
[421100501,1777044639240,-600.0,0.00013086,2]
[421100502,1777044639249,-209.43172267,0.00013365,14]
[421100503,1777044639259,-1000.0,0.00013699,2]
[421100504,1777044639270,-347.0,0.00014072,2]
[421100505,1777044639279,-130.89846759,0.00014072,2]
[421100506,1777044639290,-169.10153241,0.00014072,2]
[421100507,1777044639299,-420.0,0.00014072,2]
[421100508,1777044639311,-1680.0,0.00014112,2]
[421100509,1777044639321,-162.1,0.00014114,2]
[421100510,1777044639330,-168.04,0.00014114,2]
[421100511,1777044639339,-4164.63868043,0.0001413,2]
[421100512,1777044639348,-720.0,0.00014394,2]
[421100513,1777044639358,-221.08281646,0.00014827,2]
[421100514,1777044639367,-534.66788967,0.00015,2]
[421100515,1777044639377,-1272.40470125,0.00015096,2]
[421100517,1777044639387,-1203.01878415,0.000151,2]
[421100518,1777044639396,-1585.10670273,0.00015123,2]
[421100519,1777044639406,-151.0,0.00015187,2]
[421100520,1777044639415,-151.0,0.00015187,2]
[421100521,1777044639424,-151.0,0.00015187,2]
[421100522,1777044639433,-151.0,0.00015187,2]
[421100523,1777044639443,-151.0,0.00015187,2]
[421100524,1777044639452,-180.53396342,0.00015187,2]
[421100525,1777044639461,-151.0,0.00015187,2]
[421100526,1777044639470,-151.0,0.00015187,2]
[421100527,1777044639480,-151.0,0.00015187,2]
[421100528,1777044639489,-151.0,0.00015187,2]
[421100529,1777044639498,-151.0,0.00015187,2]
[421100530,1777044639507,-151.0,0.00015187,2]
[421100531,1777044639518,-151.0,0.00015187,2]
[421100532,1777044639528,-151.0,0.00015187,2]
[421100533,1777044639538,-151.0,0.00015187,2]
[421100534,1777044639548,-151.0,0.00015187,2]
[421100535,1777044639557,-151.0,0.00015187,2]
[421100536,1777044639567,-151.0,0.00015187,2]
[421100537,1777044639576,-151.0,0.00015187,2]
[421100538,1777044639586,-151.0,0.00015187,2]
[421100539,1777044639595,-156.76376883,0.00015187,2]
[421100540,1777044639604,-500.0,0.00015187,2]
[421100541,1777044639614,-364.73,0.00015223,2]
[421100542,1777044639624,-324.21,0.00015223,2]
[421100543,1777044639634,-336.08,0.00015223,2]
[421100544,1777044639643,-4164.63868043,0.00015274,2]
[421100545,1777044639654,-500.0,0.00015295,2]
[421100546,1777044639663,-500.0,0.00015295,2]
[421100547,1777044639672,-500.28848137,0.00015295,2]
[421100548,1777044639682,-151.0,0.000153,2]
[421100549,1777044639692,-151.0,0.000153,2]
[421100550,1777044639702,-151.0,0.000153,2]
[421100551,1777044639711,-151.0,0.000153,2]
[421100552,1777044639721,-151.0,0.000153,2]
[421100553,1777044639730,-151.0,0.000153,2]
[421100554,1777044639739,-587.0,0.00015434,2]
[421100555,1777044639748,-500.0,0.00015461,2]
[421100556,1777044639758,-977.0,0.00015523,2]
[421100557,1777044639767,-500.0,0.00015735,2]
[421100558,1777044639777,-864.0,0.00015834,2]
[421100559,1777044639787,-500.0,0.00016009,2]
[421100560,1777044639796,-500.0,0.00016283,2]
[421100561,1777044639806,-4164.63868043,0.00016418,2]
[421100562,1777044639816,-1561.0,0.00016438,2]
[421100563,1777044639826,-291.38989044,0.00016557,2]
[421100564,1777044639836,-1561.0,0.00016712,2]
[421100565,1777044639846,-254.80731388,0.00016827,2]
[421100566,1777044639857,-823.0,0.00016929,2]
[421100567,1777044639867,-250.0,0.00016947,2]
[421100568,1777044639876,-1561.0,0.00016986,2]
[421100569,1777044639886,-185.0,0.00017132,2]
[421100570,1777044639896,-442.0,0.00017132,2]
[421100571,1777044639906,-891.0,0.00017177,2]
[421100572,1777044639917,-891.0,0.00017177,2]
[421100573,1777044639926,-891.0,0.00017177,2]
[421100574,1777044639936,-891.0,0.00017177,2]
[421100575,1777044639946,-891.0,0.00017177,2]
[421100576,1777044639956,-891.0,0.00017177,2]
[421100577,1777044639965,-891.0,0.00017177,2]
[421100578,1777044639974,-891.0,0.00017177,2]
[421100579,1777044639984,-891.0,0.00017177,2]
[421100580,1777044639993,-891.0,0.00017177,2]
[421100581,1777044640002,-891.0,0.00017177,2]
[421100582,1777044640012,-891.0,0.00017177,2]
[421100583,1777044640022,-891.0,0.00017177,2]
[421100584,1777044640032,-891.0,0.00017177,2]
[421100585,1777044640041,-891.0,0.00017177,2]
[421100586,1777044640051,-891.0,0.00017177,2]
[421100587,1777044640060,-891.0,0.00017177,2]
[421100588,1777044640070,-891.0,0.00017177,2]
[421100589,1777044640080,-891.0,0.00017177,2]
[421100590,1777044640089,-891.0,0.00017177,2]
[421100591,1777044640098,-891.0,0.00017177,2]
[421100592,1777044640107,-891.0,0.00017177,2]
[421100594,1777044640117,-891.0,0.00017177,2]
[421100595,1777044640126,-898.00268781,0.00017177,2]
[421100596,1777044640135,-537.6845,0.00017192,2]
[421100597,1777044640144,-438.44861291,0.00017192,2]
[421100598,1777044640154,-2150.738,0.00017192,2]
[421100599,1777044640163,-324.26757007,0.00017247,2]
[421100600,1777044640173,-1561.0,0.0001726,2]
[421100601,1777044640183,-1000.0,0.00017417,2]
[421100602,1777044640193,-160.0,0.00017436,2]
[421100603,1777044640202,-500.0,0.00017527,2]
[421100604,1777044640211,-1561.0,0.00017534,2]
[421100605,1777044640220,-4164.63868043,0.00017563,2]
[421100606,1777044640230,-2230.315306,0.0001774,2]
[421100607,1777044640239,-1561.0,0.00017808,2]
[421100608,1777044640248,-151.0,0.00018082,2]
[421100609,1777044640258,-1561.0,0.00018082,2]
[421100610,1777044640268,-791.0,0.000181,2]
[421100611,1777044640277,-1386.41403087,0.00018191,2]
[421100612,1777044640286,-253.7026279,0.00018355,2]
[421100613,1777044640295,-151.0,0.00018356,2]
[421100614,1777044640304,-1561.0,0.00018356,2]
[421100615,1777044640313,-1152.0,0.00018569,2]
[421100616,1777044640323,-151.0,0.0001863,2]
[421100617,1777044640332,-602.0,0.0001863,2]
[421100618,1777044640341,-4164.63868043,0.00018707,2]
[421100619,1777044640350,-288.53181131,0.00018827,2]
[421100620,1777044640360,-2398.4119403,0.00018836,2]
[421100621,1777044640370,-214.0,0.0001885,2]
[421100622,1777044640379,-151.0,0.00018904,2]
[421100623,1777044640388,-15049.94634027,0.00019,25]
[421100624,1777044640397,-4457.55353614,0.00019063,2]
[421100625,1777044640407,-3599.04118689,0.00019078,2]
[421100626,1777044640416,-166.24,0.00019084,2]
[421100627,1777044640425,-1000.0,0.00019159,2]
[421100628,1777044640435,-244.0,0.00019159,2]
[421100630,1777044640444,-151.0,0.00019178,2]
[421100633,1777044640454,-500.0,0.00019178,2]
[421100635,1777044640464,-966.182661,0.00019178,2]
[421100637,1777044640474,-250.201689,0.00019178,2]
[421100638,1777044640483,-500.0,0.00019178,2]
[421100639,1777044640492,-500.0,0.00019178,2]
[421100640,1777044640502,-500.0,0.00019178,2]
[421100641,1777044640511,-500.0,0.00019178,2]
[421100642,1777044640520,-500.0,0.00019178,2]
[421100643,1777044640530,-500.0,0.00019178,2]
[421100644,1777044640539,-500.0,0.00019178,2]
[421100645,1777044640548,-500.0,0.00019178,2]
[421100646,1777044640557,-500.0,0.00019178,2]
[421100647,1777044640566,-2495.49,0.00019178,2]
[421100648,1777044640575,-500.0,0.00019178,2]
[421100649,1777044640584,-500.0,0.00019178,2]
[421100650,1777044640594,-500.0,0.00019178,2]
[421100651,1777044640603,-500.0,0.00019178,2]
[421100652,1777044640612,-500.0,0.00019178,2]
[421100653,1777044640622,-500.0,0.00019178,2]
[421100654,1777044640631,-500.0,0.00019178,2]
[421100655,1777044640641,-500.0,0.00019178,2]
[421100656,1777044640650,-720.48,0.00019178,2]
[421100657,1777044640659,-500.0,0.00019178,2]
[421100658,1777044640669,-1101.87,0.00019178,2]
[421100659,1777044640678,-500.0,0.00019178,2]
[421100660,1777044640687,-1730.54,0.00019178,2]
[421100661,1777044640697,-1021.83,0.00019178,2]
[421100662,1777044640707,-500.0,0.00019178,2]
[421100663,1777044640716,-633.78984957,0.00019178,2]
[421100664,1777044640726,-1525.05,0.00019178,2]
[421100665,1777044640735,-500.0,0.00019178,2]
[421100666,1777044640744,-500.0,0.00019178,2]
[421100667,1777044640754,-500.0,0.00019178,2]
[421100668,1777044640764,-1184.76,0.00019178,2]
[421100669,1777044640773,-500.0,0.00019178,2]
[421100670,1777044640783,-1647.01,0.00019178,2]
[421100671,1777044640792,-500.0,0.00019178,2]
[421100672,1777044640802,-500.0,0.00019178,2]
[421100673,1777044640811,-196.40957112,0.00019178,2]
[421100674,1777044640822,-55243.953831,0.00019178,2]
[421100675,1777044640832,-718.49,0.00019178,2]
[421100676,1777044640842,-500.0,0.00019178,2]
[421100677,1777044640851,-500.0,0.00019178,2]
[421100678,1777044640860,-151.0,0.00019178,2]
[421100679,1777044640870,-500.0,0.00019178,2]
[421100680,1777044640880,-151.0,0.00019178,2]
[421100681,1777044640889,-151.0,0.00019178,2]
[421100682,1777044640899,-500.0,0.00019178,2]
[421100683,1777044640908,-260.571242,0.00019178,2]
[421100684,1777044640918,-500.0,0.00019178,2]
[421100686,1777044640927,-500.0,0.00019178,2]
[421100687,1777044640937,-2287.71,0.00019178,2]
[421100688,1777044640951,-500.0,0.00019178,2]
[421100689,1777044640961,-500.0,0.00019178,2]
[421100690,1777044640970,-513.5,0.00019178,2]
[421100691,1777044640980,-500.0,0.00019178,2]
[421100692,1777044640989,-500.0,0.00019178,2]
[421100693,1777044640999,-500.0,0.00019178,2]
[421100694,1777044641009,-2074.22,0.00019178,2]
[421100695,1777044641020,-500.0,0.00019178,2]
[421100696,1777044641029,-500.0,0.00019178,2]
[421100697,1777044641039,-500.0,0.00019178,2]
[421100699,1777044641048,-500.0,0.00019178,2]
[421100700,1777044641058,-500.0,0.00019178,2]
[421100701,1777044641067,-500.0,0.00019178,2]
[421100702,1777044641076,-547.8528643,0.00019178,2]
[421100703,1777044641087,-500.0,0.00019178,2]
[421100704,1777044641098,-500.0,0.00019178,2]
[421100705,1777044641108,-1145.87,0.00019178,2]
[421100706,1777044641118,-500.0,0.00019178,2]
[421100707,1777044641128,-500.0,0.00019178,2]
[421100708,1777044641138,-537.47774117,0.00019178,2]
[421100709,1777044641148,-500.0,0.00019178,2]
[421100711,1777044641159,-500.0,0.00019178,2]
[421100712,1777044641168,-559.7,0.00019178,2]
[421100713,1777044641178,-500.0,0.00019178,2]
[421100714,1777044641187,-500.0,0.00019178,2]
[421100715,1777044641198,-500.0,0.00019178,2]
[421100716,1777044641208,-500.0,0.00019178,2]
[421100717,1777044641217,-999.9,0.00019178,2]
[421100718,1777044641226,-670.72,0.00019178,2]
[421100719,1777044641236,-500.0,0.00019178,2]
[421100720,1777044641245,-500.0,0.00019178,2]
[421100721,1777044641255,-666.5,0.00019178,2]
[421100722,1777044641265,-500.0,0.00019178,2]
[421100723,1777044641274,-500.0,0.00019178,2]
[421100724,1777044641284,-500.0,0.00019178,2]
[421100725,1777044641293,-500.0,0.00019178,2]
[421100726,1777044641302,-427.44909446,0.00019178,2]
[421100727,1777044641312,-500.0,0.00019178,2]
[421100728,1777044641321,-886.36,0.00019178,2]
[421100729,1777044641331,-515.81683108,0.00019178,2]
[421100730,1777044641340,-500.0,0.00019178,2]
[421100731,1777044641350,-635.84,0.00019178,2]
[421100732,1777044641359,-500.0,0.00019178,2]
[421100733,1777044641369,-500.0,0.00019178,2]
[421100734,1777044641378,-500.0,0.00019178,2]
[421100735,1777044641388,-1530.61,0.00019178,2]
[421100736,1777044641398,-500.0,0.00019178,2]
[421100737,1777044641407,-1436.79,0.00019178,2]
[421100738,1777044641417,-500.0,0.00019178,2]
[421100739,1777044641426,-1104.11,0.00019178,2]
[421100740,1777044641436,-500.0,0.00019178,2]
[421100741,1777044641446,-500.0,0.00019178,2]
[421100742,1777044641456,-500.0,0.00019178,2]
[421100743,1777044641465,-500.0,0.00019178,2]
[421100744,1777044641474,-500.0,0.00019178,2]
[421100745,1777044641483,-500.0,0.00019178,2]
[421100746,1777044641493,-500.0,0.00019178,2]
[421100747,1777044641503,-500.0,0.00019178,2]
[421100748,1777044641514,-500.0,0.00019178,2]
[421100749,1777044641525,-500.0,0.00019178,2]
[421100750,1777044641535,-500.0,0.00019178,2]
[421100751,1777044641544,-584.18,0.00019178,2]
[421100752,1777044641554,-500.0,0.00019178,2]
[421100753,1777044641564,-500.0,0.00019178,2]
[421100754,1777044641574,-500.0,0.00019178,2]
[421100755,1777044641583,-500.0,0.00019178,2]
[421100756,1777044641593,-500.0,0.00019178,2]
[421100757,1777044641604,-1184.76,0.00019178,2]
[421100758,1777044641614,-500.0,0.00019178,2]
[421100759,1777044641624,-500.0,0.00019178,2]
[421100760,1777044641634,-500.0,0.00019178,2]
[421100761,1777044641643,-500.0,0.00019178,2]
[421100762,1777044641652,-500.0,0.00019178,2]
[421100763,1777044641662,-500.0,0.00019178,2]
[421100764,1777044641672,-771.79,0.00019178,2]
[421100765,1777044641681,-500.0,0.00019178,2]
[421100766,1777044641690,-500.0,0.00019178,2]
[421100767,1777044641699,-500.0,0.00019178,2]
[421100768,1777044641708,-500.0,0.00019178,2]
[421100769,1777044641717,-493.4857404,0.00019178,2]
[421100770,1777044641726,-500.0,0.00019178,2]
[421100771,1777044641735,-3287.88,0.00019178,2]
[421100772,1777044641745,-500.0,0.00019178,2]
[421100773,1777044641754,-500.0,0.00019178,2]
[421100774,1777044641764,-500.0,0.00019178,2]
[421100775,1777044641774,-500.0,0.00019178,2]
[421100776,1777044641783,-500.0,0.00019178,2]
[421100777,1777044641792,-6198.83,0.00019178,2]
[421100778,1777044641802,-500.0,0.00019178,2]
[421100779,1777044641811,-544.21,0.00019178,2]
[421100780,1777044641821,-500.0,0.00019178,2]
[421100781,1777044641831,-177.9742273,0.00019178,2]
[421100782,1777044641841,-500.0,0.00019178,2]
[421100783,1777044641850,-214.82715769,0.00019178,2]
[421100784,1777044641861,-500.0,0.00019178,2]
[421100785,1777044641871,-300.0,0.00019178,2]
[421100786,1777044641881,-500.0,0.00019178,2]
[421100787,1777044641890,-500.0,0.00019178,2]
[421100788,1777044641900,-1014.9,0.00019178,2]
[421100789,1777044641910,-500.0,0.00019178,2]
[421100790,1777044641920,-543.36358892,0.00019178,2]
[421100791,1777044641929,-972.89,0.00019178,2]
[421100792,1777044641938,-500.0,0.00019178,2]
[421100793,1777044641948,-1336.76,0.00019178,2]
[421100794,1777044641958,-500.0,0.00019178,2]
[421100795,1777044641969,-510.82241132,0.00019178,2]
[421100796,1777044641979,-805.3,0.00019178,2]
[421100797,1777044641988,-500.0,0.00019178,2]
[421100798,1777044641999,-1094.44,0.00019178,2]
[421100799,1777044642008,-2145.62,0.00019178,2]
[421100800,1777044642018,-500.0,0.00019178,2]
[421100801,1777044642028,-500.0,0.00019178,2]
[421100802,1777044642039,-530.38490478,0.00019178,2]
[421100803,1777044642049,-500.0,0.00019178,2]
[421100804,1777044642059,-500.0,0.00019178,2]
[421100805,1777044642069,-502.28771595,0.00019178,2]
[421100806,1777044642078,-500.0,0.00019178,2]
[421100807,1777044642087,-500.0,0.00019178,2]
[421100808,1777044642261,-500.0,0.00019178,2]
[421100809,1777044642271,-618.06921291,0.00019178,2]
[421100810,1777044642280,-740.13,0.00019178,2]
[421100811,1777044642289,-600.06,0.00019178,2]
[421100812,1777044642299,-500.0,0.00019178,2]
[421100813,1777044642308,-500.0,0.00019178,2]
[421100814,1777044642317,-500.0,0.00019178,2]
[421100815,1777044642326,-500.0,0.00019178,2]
[421100816,1777044642335,-1043.49,0.00019178,2]
[421100817,1777044642344,-500.0,0.00019178,2]
[421100818,1777044642354,-500.0,0.00019178,2]
[421100819,1777044642363,-500.0,0.00019178,2]
[421100820,1777044642372,-500.0,0.00019178,2]
[421100821,1777044642382,-479.04609745,0.00019178,2]
[421100822,1777044642391,-1021.66,0.00019178,2]
[421100823,1777044642400,-554.06,0.00019178,2]
[421100824,1777044642410,-500.0,0.00019178,2]
[421100825,1777044642419,-500.0,0.00019178,2]
[421100826,1777044642428,-4071.18,0.00019178,2]
[421100827,1777044642438,-2235.17,0.00019178,2]
[421100828,1777044642447,-500.0,0.00019178,2]
[421100829,1777044642456,-500.0,0.00019178,2]
[421100830,1777044642466,-809.96,0.00019178,2]
[421100831,1777044642475,-171.005788,0.00019178,2]